[Event "European Women Rapid-ch 2023"]
[Site "Monaco"]
[Date "2024.01.14"]
[Round "9.11"]
[White "Hunt, Harriet V"]
[Black "Hejazipour, Mitra"]
[Result "1/2-1/2"]
[ECO "B50"]
[WhiteElo "2306"]
[BlackElo "2356"]
[Annotator "RC"]
[PlyCount "138"]
[EventDate "2023.12.19"]
[EventType "swiss"]
[EventCountry "MNC"]
[SourceTitle "playchess.com"]
[Source "ChessBase"]
[SourceQuality "1"]
[TimeControl "900+10"]

1. e4 {[%emt 0:00:02]} c5 {[%emt 0:00:02]} 2. Nf3 {[%emt 0:00:02]} d6 {[%emt 0:00:05]} 3. c3 {[%emt 0:00:08]} Nf6 {[%emt 0:00:05]} 4. h3 {[%emt 0:00:06]} g6 {[%emt 0:01:04]} 5. Bd3 {[%emt 0:00:06]} Bg7 {[%emt 0:00:07]} 6. O-O {[%emt 0:00:07]} O-O {[%emt 0:00:14]} 7. Re1 {[%emt 0:00:25]} Nc6 {[%emt 0:00:14]} 8. Bc2 {[%emt 0:00:23]} e5 {[%emt 0:01:47]} 9. d3 {[%emt 0:00:09]} a6 {[%emt 0:00:31]} 10. a4 {[%emt 0:01:03]} Rb8 {[%emt 0:00:03]} 11. Bg5 {[%emt 0:02:59]} h6 {[%emt 0:00:15]} 12. Be3 {[%emt 0:00:02]} b5 {[%emt 0:00:16]} 13. axb5 {[%emt 0:00:04]} axb5 {[%emt 0:00:01]} 14. Qd2 {[%emt 0:00:12]} Kh7 {[%emt 0:00:11]} 15. b4 {[%emt 0:01:21]} Qe7 {[%emt 0:01:06]} 16. Na3 {[%emt 0:01:31]} Be6 {[%emt 0:00:28]} 17. Reb1 {[%emt 0:00:03]} cxb4 {[%emt 0:00:14]} 18. cxb4 {[%emt 0:00:01]} Rfc8 {[%emt 0:01:15]} 19. Bb3 {[%emt 0:00:52]} Bxb3 20. Rxb3 {[%emt 0:00:01]} d5 {[%emt 0:00:46]} 21. Bc5 {[%emt 0:00:34]} Qe6 {[%emt 0:00:02]} 22. exd5 {[%emt 0:01:03]} Nxd5 {[%emt 0:00:26]} 23. Re1 {[%emt 0:00:50]} Nf4 {[%emt 0:00:35]} 24. Rbb1 {[%emt 0:00:12]} Qd5 {[%emt 0:00:09]} 25. Re3 {[%emt 0:00:31]} Rd8 {[%emt 0:02:00]} 26. Rd1 {[%emt 0:00:25]} f5 {[%emt 0:00:47]} 27. Nb1 {[%emt 0:00:37]} Qf7 {[%emt 0:00:37]} 28. Nc3 {[%emt 0:03:01]} e4 {[%emt 0:00:25]} 29. d4 {[%emt 0:00:07]} exf3 {[%emt 0:00:17]} 30. Rxf3 {[%emt 0:00:10]} Nd5 {[%emt 0:00:31]} 31. Ne2 {[%emt 0:00:10]} Nf6 {[%emt 0:00:16]} 32. Ng3 {[%emt 0:00:15]} Qd5 {[%emt 0:00:25]} 33. Qc2 {[%emt 0:00:10]} Ne4 {[%emt 0:00:18]} 34. Ne2 {[%emt 0:00:19]} Nxc5 {[%emt 0:00:10]} 35. bxc5 {[%emt 0:00:01]} b4 {[%emt 0:01:35]} 36. Rb3 {[%emt 0:01:23]} Qf7 {[%emt 0:00:53]} 37. Rbd3 {[%emt 0:00:22]} b3 {[%emt 0:00:25]} 38. Qb1 {[%emt 0:00:02]} b2 {[%emt 0:00:54]} 39. R3d2 {[%emt 0:00:15]} Qc4 {[%emt 0:00:33]} 40. Rc2 {[%emt 0:00:39]} Qa4 {[%emt 0:00:17]} 41. d5 {[%emt 0:00:20]} Nb4 {[%emt 0:00:06]} 42. Rcd2 {[%emt 0:00:02]} Qa1 {[%emt 0:00:21]} 43. Nf4 {[%emt 0:00:16]} Qxb1 44. Rxb1 {[%emt 0:00:00]} Be5 {[%emt 0:00:15]} 45. g3 {[%emt 0:00:35]} Bxf4 {[%emt 0:00:09]} 46. gxf4 {[%emt 0:00:01]} Nxd5 {[%emt 0:00:07]} 47. c6 {[%emt 0:00:25]} Nc7 {[%emt 0:00:18]} 48. Rdxb2 {[%emt 0:00:15]} Rxb2 {[%emt 0:00:04]} 49. Rxb2 {[%emt 0:00:00]} Rd6 {[%emt 0:00:02]} 50. Rc2 {[%emt 0:00:03]} Kg7 {[%emt 0:00:04]} 51. Kg2 {[%emt 0:00:02]} Kf6 {[%emt 0:00:02]} 52. Kf3 {[%emt 0:00:01]} Ke6 {[%emt 0:00:03]} 53. Rc5 {[%emt 0:00:15]} Rd3+ {[%emt 0:00:05]} 54. Kg2 {[%emt 0:00:13]} Rd5 {[%emt 0:00:07]} 55. Rc3 {[%emt 0:00:05]} Kd6 {[%emt 0:00:02]} 56. Rg3 {[%emt 0:00:06]} Kxc6 {[%emt 0:00:07]} 57. Rxg6+ {[%emt 0:00:01]} Rd6 {[%emt 0:00:01]} 58. Rg8 {[%emt 0:00:05]} Kd5 {[%emt 0:00:24]} 59. Kf3 {[%emt 0:00:13]} Ne6 {[%emt 0:00:23]} 60. Rh8 {[%emt 0:00:18]} Nd4+ {[%emt 0:00:08]} 61. Kg3 {[%emt 0:00:10]} Rg6+ {[%emt 0:00:05]} 62. Kh4 {[%emt 0:00:11]} Ne2 {[%emt 0:00:05]} 63. Rf8 {[%emt 0:00:11]} Ke4 {[%emt 0:00:20]} 64. Re8+ {[%emt 0:00:06]} Kf3 {[%emt 0:00:03]} 65. Re5 {[%emt 0:00:23]} Rf6 {[%emt 0:00:03]} 66. Rxf5 {[%emt 0:00:40]} Rd6 {[%emt 0:00:40]} 67. Re5 {[%emt 0:00:18]} Nxf4 {[%emt 0:00:19]} 68. Re3+ {[%emt 0:00:10]} Kxf2 {[%emt 0:00:04]} 69. Rf3+ {[%emt 0:00:04]} Kxf3 {[%emt 0:00:26]} 1/2-1/2

[Event "European Women Rapid-ch 2023"]
[Site "Monaco"]
[Date "2024.01.14"]
[Round "9.12"]
[White "Movsesian, Julia"]
[Black "Javakhishvili, Lela"]
[Result "1-0"]
[ECO "B46"]
[WhiteElo "2257"]
[BlackElo "2433"]
[Annotator "RC"]
[PlyCount "59"]
[EventDate "2023.12.19"]
[EventType "swiss"]
[EventCountry "MNC"]
[SourceTitle "playchess.com"]
[Source "ChessBase"]
[SourceQuality "1"]
[TimeControl "900+10"]

1. e4 {[%emt 0:00:01]} c5 {[%emt 0:00:02]} 2. Nf3 {[%emt 0:00:02]} Nc6 {[%emt 0:00:02]} 3. Nc3 {[%emt 0:00:11]} a6 {[%emt 0:00:11]} 4. d4 {[%emt 0:00:08]} cxd4 {[%emt 0:00:03]} 5. Nxd4 {[%emt 0:00:01]} e6 {[%emt 0:01:08]} 6. g3 {[%emt 0:00:13]} Nf6 {[%emt 0:00:20]} 7. Bg2 {[%emt 0:00:03]} h5 {[%emt 0:00:03]} 8. h3 {[%emt 0:00:12]} Be7 {[%emt 0:00:18]} 9. O-O {[%emt 0:00:11]} Qc7 {[%emt 0:00:22]} 10. Re1 {[%emt 0:00:37]} d6 {[%emt 0:00:55]} 11. Nxc6 {[%emt 0:01:36]} bxc6 {[%emt 0:00:03]} 12. e5 {[%emt 0:00:01]} dxe5 {[%emt 0:00:06]} 13. Rxe5 {[%emt 0:00:01]} h4 {[%emt 0:01:01]} 14. Bf4 {[%emt 0:00:34]} Qb6 {[%emt 0:01:58]} 15. Qf3 {[%emt 0:01:07]} Nd5 {[%emt 0:00:34]} 16. Rae1 {[%emt 0:00:29]} Bb7 {[%emt 0:00:27]} 17. Qg4 {[%emt 0:02:09]} Nxf4 {[%emt 0:00:56]} 18. Qxf4 {[%emt 0:00:09]} hxg3 {[%emt 0:00:30]} 19. Qxg3 {[%emt 0:00:25]} Rh6 {[%emt 0:02:28]} 20. Na4 {[%emt 0:01:13]} Qd4 {[%emt 0:00:56]} 21. R5e4 {[%emt 0:00:22]} Qf6 {[%emt 0:00:37]} 22. Qc7 {[%emt 0:00:08]} Rd8 {[%emt 0:01:56]} 23. Qxb7 {[%emt 0:00:05]} Rd2 {[%emt 0:00:02]} 24. Qxc6+ {[%emt 0:00:15]} Kf8 {[%emt 0:00:01]} 25. R4e2 {[%emt 0:00:11]} Rd4 {[%emt 0:00:13]} 26. Nc5 {[%emt 0:00:17]} Qg5 {[%emt 0:00:08]} 27. Nd7+ {[%emt 0:00:33]} Kg8 {[%emt 0:00:02]} 28. Ne5 {[%emt 0:00:03]} Rxh3 {[%emt 0:01:23]} 29. Qe8+ {[%emt 0:00:05]} Kh7 {[%emt 0:00:02]} 30. Qh8+ {[%emt 0:00:39]} 1-0

[Event "European Women Rapid-ch 2023"]
[Site "Monaco"]
[Date "2024.01.14"]
[Round "9.13"]
[White "Navrotescu, Andreea"]
[Black "Hoang, Thanh Trang"]
[Result "1/2-1/2"]
[ECO "C02"]
[WhiteElo "2222"]
[BlackElo "2382"]
[Annotator "RC"]
[PlyCount "92"]
[EventDate "2023.12.19"]
[EventType "swiss"]
[EventCountry "MNC"]
[SourceTitle "playchess.com"]
[Source "ChessBase"]
[SourceQuality "1"]
[TimeControl "900+10"]

1. d4 {[%emt 0:00:01]} e6 {[%emt 0:00:04]} 2. e4 {[%emt 0:00:10]} d5 {[%emt 0:00:05]} 3. e5 {[%emt 0:00:01]} c5 {[%emt 0:00:05]} 4. c3 {[%emt 0:00:02]} Nc6 {[%emt 0:00:05]} 5. Nf3 {[%emt 0:00:02]} Qb6 {[%emt 0:00:05]} 6. Be2 {[%emt 0:00:02]} cxd4 {[%emt 0:00:17]} 7. cxd4 {[%emt 0:00:03]} Nge7 {[%emt 0:00:09]} 8. Na3 {[%emt 0:01:18]} Nf5 {[%emt 0:00:16]} 9. Nc2 {[%emt 0:00:02]} Bd7 {[%emt 0:00:22]} 10. O-O {[%emt 0:03:05]} Rc8 {[%emt 0:00:16]} 11. Rb1 {[%emt 0:01:15]} Na5 {[%emt 0:00:58]} 12. h4 {[%emt 0:01:10]} Bb5 {[%emt 0:01:11]} 13. h5 {[%emt 0:00:21]} h6 {[%emt 0:01:41]} 14. g4 {[%emt 0:01:52]} Ne7 {[%emt 0:00:21]} 15. Nfe1 {[%emt 0:02:06]} Bxe2 {[%emt 0:00:45]} 16. Qxe2 {[%emt 0:00:02]} Nec6 {[%emt 0:00:18]} 17. Be3 {[%emt 0:00:14]} Nc4 {[%emt 0:01:01]} 18. Kh1 {[%emt 0:02:29]} Be7 {[%emt 0:00:25]} 19. f4 {[%emt 0:00:17]} Nxe3 {[%emt 0:00:45]} 20. Qxe3 {[%emt 0:00:01]} Qa6 {[%emt 0:00:17]} 21. Qf2 {[%emt 0:02:23]} Qxa2 {[%emt 0:00:16]} 22. Ng2 {[%emt 0:00:44]} Qb3 {[%emt 0:00:45]} 23. Nge3 {[%emt 0:00:09]} Qd3 {[%emt 0:01:07]} 24. Kh2 {[%emt 0:00:08]} Nb4 {[%emt 0:01:02]} 25. Nxb4 {[%emt 0:00:26]} Bxb4 {[%emt 0:00:03]} 26. Rbd1 {[%emt 0:00:24]} Qe4 {[%emt 0:00:19]} 27. Kg3 {[%emt 0:00:29]} O-O {[%emt 0:00:18]} 28. f5 {[%emt 0:00:06]} f6 {[%emt 0:00:44]} 29. fxe6 {[%emt 0:00:15]} fxe5 {[%emt 0:00:04]} 30. Nf5 {[%emt 0:00:01]} exd4 {[%emt 0:02:05]} 31. Rxd4 {[%emt 0:00:01]} Bd6+ {[%emt 0:00:51]} 32. Kh3 {[%emt 0:00:17]} Qxe6 {[%emt 0:00:10]} 33. Re1 {[%emt 0:00:20]} Be5 {[%emt 0:01:44]} 34. Rd3 {[%emt 0:00:01]} Qf6 {[%emt 0:00:34]} 35. Rxd5 {[%emt 0:00:05]} Bxb2 {[%emt 0:00:11]} 36. Qf3 {[%emt 0:00:29]} Rc3 {[%emt 0:00:17]} 37. Re3 {[%emt 0:00:03]} Rxe3 {[%emt 0:00:16]} 38. Qxe3 {[%emt 0:00:01]} Qc3 {[%emt 0:00:24]} 39. Rd3 {[%emt 0:00:01]} Qc1 {[%emt 0:00:09]} 40. Qe6+ {[%emt 0:00:28]} Kh8 {[%emt 0:00:04]} 41. Qe7 {[%emt 0:00:19]} Qf1+ {[%emt 0:00:21]} 42. Kh2 {[%emt 0:00:01]} Rxf5 {[%emt 0:00:30]} 43. gxf5 {[%emt 0:00:10]} Qxd3 {[%emt 0:00:26]} 44. Qe8+ {[%emt 0:00:01]} Kh7 {[%emt 0:00:01]} 45. Qg6+ {[%emt 0:00:01]} Kg8 {[%emt 0:00:01]} 46. Qe8+ {[%emt 0:00:01]} Kh7 {[%emt 0:00:00]} 1/2-1/2

[Event "European Women Rapid-ch 2023"]
[Site "Monaco"]
[Date "2024.01.14"]
[Round "9.14"]
[White "Zimina, Olga"]
[Black "Lazarne Vajda, Szidonia"]
[Result "1-0"]
[ECO "A46"]
[WhiteElo "2291"]
[BlackElo "2283"]
[Annotator "ChessBase"]
[PlyCount "45"]
[EventDate "2023.12.19"]
[EventType "swiss"]
[EventCountry "MNC"]
[SourceTitle "playchess.com"]
[Source "ChessBase"]
[SourceQuality "1"]
[TimeControl "900+10"]

1. d4 {[%emt 0:00:01]} d5 {[%emt 0:00:02]} 2. Nf3 {[%emt 0:00:03]} Nf6 {[%emt 0:00:07]} 3. g3 {[%emt 0:00:02]} e6 {[%emt 0:00:08]} 4. Bg2 {[%emt 0:00:03]} b5 {[%emt 0:00:10]} 5. a4 {[%emt 0:00:28]} b4 {[%emt 0:00:01]} 6. c4 {[%emt 0:00:02]} bxc3 {[%emt 0:00:08]} 7. Nxc3 {[%emt 0:00:02]} c5 {[%emt 0:00:21]} 8. O-O {[%emt 0:00:25]} Nc6 {[%emt 0:00:39]} 9. Bf4 {[%emt 0:00:31]} Nh5 {[%emt 0:01:51]} 10. Bg5 {[%emt 0:03:42]} Qb6 {[%emt 0:00:51]} 11. e4 {[%emt 0:00:55]} cxd4 {[%emt 0:02:11]} 12. exd5 {[%emt 0:02:30]} dxc3 {[%emt 0:00:01]} 13. dxc6 {[%emt 0:00:05]} cxb2 {[%emt 0:00:51]} 14. Rb1 {[%emt 0:00:13]} Nf6 {[%emt 0:00:56]} 15. Ne5 {[%emt 0:01:38]} Qc7 {[%emt 0:02:38]} 16. Nd7 {[%emt 0:00:23]} Ba6 {[%emt 0:02:56]} 17. Bf4 {[%emt 0:01:43]} Qc8 {[%emt 0:00:08]} 18. Nxf6+ {[%emt 0:00:23]} gxf6 {[%emt 0:00:01]} 19. Qd7+ {[%emt 0:00:29]} Qxd7 {[%emt 0:00:16]} 20. cxd7+ {[%emt 0:00:02]} Kxd7 {[%emt 0:00:02]} 21. Rfd1+ {[%emt 0:00:02]} Kc8 {[%emt 0:00:19]} 22. Rxb2 {[%emt 0:00:33]} e5 {[%emt 0:00:07]} 23. Rc2+ {[%emt 0:00:04]} 1-0

[Event "European Women Rapid-ch 2023"]
[Site "Monaco"]
[Date "2024.01.14"]
[Round "9.15"]
[White "Piddubna, Bozhena"]
[Black "Daulyte-Cornette, Deimante"]
[Result "0-1"]
[ECO "A30"]
[WhiteElo "2035"]
[BlackElo "2372"]
[Annotator "RC"]
[PlyCount "120"]
[EventDate "2023.12.19"]
[EventType "swiss"]
[EventCountry "MNC"]
[SourceTitle "playchess.com"]
[Source "ChessBase"]
[SourceQuality "1"]
[TimeControl "900+10"]

1. g3 {[%emt 0:00:02]} d5 {[%emt 0:00:05]} 2. Nf3 {[%emt 0:00:02]} c5 {[%emt 0:00:04]} 3. Bg2 {[%emt 0:00:02]} Nc6 {[%emt 0:00:04]} 4. O-O {[%emt 0:00:02]} e5 {[%emt 0:00:07]} 5. c4 {[%emt 0:00:08]} Nf6 {[%emt 0:00:19]} 6. d3 {[%emt 0:00:59]} Be7 {[%emt 0:00:16]} 7. cxd5 {[%emt 0:00:55]} Nxd5 {[%emt 0:00:03]} 8. Nc3 {[%emt 0:00:02]} Be6 {[%emt 0:00:12]} 9. Nxd5 {[%emt 0:02:02]} Bxd5 {[%emt 0:00:03]} 10. b3 {[%emt 0:00:01]} O-O {[%emt 0:01:29]} 11. Bb2 {[%emt 0:00:02]} Qc7 {[%emt 0:01:14]} 12. Rc1 {[%emt 0:00:01]} Rfd8 {[%emt 0:00:19]} 13. Qc2 {[%emt 0:00:43]} Qd6 {[%emt 0:00:38]} 14. Rfd1 {[%emt 0:01:56]} h6 {[%emt 0:00:24]} 15. Ba3 {[%emt 0:02:58]} b6 {[%emt 0:02:35]} 16. d4 {[%emt 0:00:47]} exd4 {[%emt 0:00:41]} 17. Nxd4 {[%emt 0:00:34]} Bxg2 {[%emt 0:00:43]} 18. Nf5 {[%emt 0:00:25]} Qe6 {[%emt 0:00:53]} 19. Kxg2 {[%emt 0:00:10]} Bg5 {[%emt 0:00:21]} 20. Rb1 {[%emt 0:01:01]} g6 {[%emt 0:00:33]} 21. h4 {[%emt 0:00:04]} Qxf5 {[%emt 0:00:44]} 22. Qxf5 {[%emt 0:00:05]} gxf5 {[%emt 0:00:02]} 23. hxg5 {[%emt 0:00:02]} hxg5 {[%emt 0:00:01]} 24. Rh1 {[%emt 0:00:26]} Kg7 {[%emt 0:00:36]} 25. Rh5 {[%emt 0:00:03]} f6 {[%emt 0:00:11]} 26. Bb2 {[%emt 0:00:13]} Kf7 {[%emt 0:01:01]} 27. Bxf6 {[%emt 0:00:45]} Kxf6 {[%emt 0:00:14]} 28. Rh6+ {[%emt 0:00:01]} Ke5 {[%emt 0:00:07]} 29. Rxc6 {[%emt 0:00:04]} Rd2 {[%emt 0:00:06]} 30. e3 {[%emt 0:01:00]} Rxa2 {[%emt 0:00:16]} 31. Rd1 {[%emt 0:00:13]} Rb2 {[%emt 0:00:25]} 32. Rd7 {[%emt 0:01:17]} g4 {[%emt 0:00:16]} 33. Rd3 {[%emt 0:00:50]} Rh8 {[%emt 0:01:12]} 34. Rg6 {[%emt 0:00:15]} Re8 {[%emt 0:01:01]} 35. Rgd6 {[%emt 0:01:14]} Re6 {[%emt 0:00:26]} 36. Rd8 {[%emt 0:00:26]} Ke4 {[%emt 0:00:28]} 37. R8d7 {[%emt 0:00:42]} a5 {[%emt 0:00:17]} 38. Rd8 {[%emt 0:00:13]} b5 {[%emt 0:01:39]} 39. R8d7 {[%emt 0:00:05]} Rc6 {[%emt 0:00:51]} 40. Rd8 {[%emt 0:00:42]} Ke5 {[%emt 0:00:18]} 41. Re8+ {[%emt 0:00:12]} Kf6 {[%emt 0:00:16]} 42. Rf8+ {[%emt 0:00:02]} Ke6 {[%emt 0:00:08]} 43. Re8+ {[%emt 0:00:14]} Kf7 {[%emt 0:00:02]} 44. Ra8 {[%emt 0:00:04]} c4 {[%emt 0:00:12]} 45. bxc4 {[%emt 0:00:19]} bxc4 {[%emt 0:00:02]} 46. Rd5 {[%emt 0:00:03]} c3 {[%emt 0:00:03]} 47. Rxf5+ {[%emt 0:00:06]} Ke6 {[%emt 0:00:08]} 48. Raf8 {[%emt 0:00:21]} c2 {[%emt 0:00:09]} 49. R5f6+ {[%emt 0:00:12]} Kd5 {[%emt 0:00:09]} 50. Rd8+ {[%emt 0:00:06]} Kc5 {[%emt 0:00:03]} 51. Rxc6+ {[%emt 0:00:14]} Kxc6 {[%emt 0:00:01]} 52. Rc8+ {[%emt 0:00:02]} Kd5 {[%emt 0:00:10]} 53. Rd8+ {[%emt 0:00:07]} Kc4 {[%emt 0:00:08]} 54. e4 {[%emt 0:00:04]} Rb5 {[%emt 0:00:08]} 55. e5 {[%emt 0:00:15]} Rxe5 {[%emt 0:00:18]} 56. Rc8+ {[%emt 0:00:06]} Rc5 {[%emt 0:00:02]} 57. Rg8 {[%emt 0:00:03]} c1=Q {[%emt 0:00:06]} 58. Rxg4+ {[%emt 0:00:02]} Kd3 {[%emt 0:00:06]} 59. Rf4 {[%emt 0:00:03]} Qxf4 {[%emt 0:00:03]} 60. gxf4 {[%emt 0:00:02]} a4 {[%emt 0:00:05]} 0-1

[Event "European Women Rapid-ch 2023"]
[Site "Monaco"]
[Date "2024.01.14"]
[Round "9.16"]
[White "Charkhalashvili, Inga"]
[Black "Guichard, Pauline"]
[Result "1-0"]
[ECO "D44"]
[WhiteElo "2239"]
[BlackElo "2385"]
[Annotator "RC"]
[PlyCount "67"]
[EventDate "2023.12.19"]
[EventType "swiss"]
[EventCountry "MNC"]
[SourceTitle "playchess.com"]
[Source "ChessBase"]
[SourceQuality "1"]
[TimeControl "900+10"]

1. d4 {[%emt 0:00:02]} Nf6 {[%emt 0:00:01]} 2. c4 {[%emt 0:00:03]} e6 {[%emt 0:00:02]} 3. Nf3 {[%emt 0:00:04]} d5 {[%emt 0:00:02]} 4. Bg5 {[%emt 0:00:09]} dxc4 {[%emt 0:00:47]} 5. e3 {[%emt 0:00:39]} b5 {[%emt 0:00:22]} 6. Nc3 {[%emt 0:00:14]} c6 {[%emt 0:00:32]} 7. a4 {[%emt 0:00:21]} a6 {[%emt 0:02:19]} 8. axb5 {[%emt 0:00:50]} cxb5 {[%emt 0:00:02]} 9. Nxb5 {[%emt 0:01:02]} axb5 {[%emt 0:00:03]} 10. Rxa8 {[%emt 0:00:03]} Bb4+ {[%emt 0:00:33]} 11. Ke2 {[%emt 0:01:34]} Bb7 {[%emt 0:00:04]} 12. Bxf6 {[%emt 0:00:31]} gxf6 {[%emt 0:00:06]} 13. Ra1 {[%emt 0:00:08]} Rg8 {[%emt 0:01:27]} 14. Ne1 {[%emt 0:00:43]} f5 {[%emt 0:00:49]} 15. f3 {[%emt 0:00:11]} Nd7 {[%emt 0:01:19]} 16. Nc2 {[%emt 0:01:02]} Bd6 {[%emt 0:00:12]} 17. Qe1 {[%emt 0:00:26]} Qb8 {[%emt 0:00:52]} 18. Qa5 {[%emt 0:00:25]} Kf8 {[%emt 0:03:28]} 19. Kf2 {[%emt 0:00:51]} Bxh2 {[%emt 0:03:07]} 20. Rxh2 {[%emt 0:03:11]} Qxh2 {[%emt 0:00:48]} 21. Qd8+ {[%emt 0:00:02]} Kg7 {[%emt 0:00:01]} 22. Qxd7 {[%emt 0:00:10]} Bd5 {[%emt 0:01:10]} 23. Qe7 {[%emt 0:00:35]} Qh6 {[%emt 0:00:31]} 24. Ra7 {[%emt 0:01:09]} Rf8 {[%emt 0:00:03]} 25. Nb4 {[%emt 0:00:29]} Ba8 {[%emt 0:00:03]} 26. Qd6 {[%emt 0:00:26]} Kh8 {[%emt 0:00:27]} 27. Nc6 {[%emt 0:02:05]} Qh4+ {[%emt 0:00:16]} 28. g3 {[%emt 0:01:17]} Qh6 {[%emt 0:00:11]} 29. Ne5 {[%emt 0:00:13]} Kg8 {[%emt 0:00:10]} 30. Nd7 {[%emt 0:00:42]} Rc8 {[%emt 0:00:07]} 31. Qe5 {[%emt 0:00:11]} Qh2+ {[%emt 0:00:02]} 32. Bg2 {[%emt 0:00:01]} b4 {[%emt 0:00:15]} 33. Nf6+ {[%emt 0:00:21]} Kf8 {[%emt 0:00:01]} 34. Ng4 {[%emt 0:00:16]} 1-0

[Event "European Women Rapid-ch 2023"]
[Site "Monaco"]
[Date "2024.01.14"]
[Round "9.17"]
[White "Savina, Anastasia"]
[Black "Gvetadze, Sofio"]
[Result "0-1"]
[ECO "E73"]
[WhiteElo "2340"]
[BlackElo "2298"]
[Annotator "RC"]
[PlyCount "79"]
[EventDate "2023.12.19"]
[EventType "swiss"]
[EventCountry "MNC"]
[SourceTitle "playchess.com"]
[Source "ChessBase"]
[SourceQuality "1"]
[TimeControl "900+10"]

1. d4 {[%emt 0:00:03]} Nf6 {[%emt 0:00:02]} 2. c4 {[%emt 0:00:01]} g6 {[%emt 0:00:03]} 3. Nc3 {[%emt 0:00:06]} Bg7 {[%emt 0:00:05]} 4. e4 {[%emt 0:00:02]} d6 {[%emt 0:00:02]} 5. Be2 {[%emt 0:00:02]} c5 {[%emt 0:00:05]} 6. d5 {[%emt 0:00:20]} O-O {[%emt 0:00:03]} 7. h4 {[%emt 0:00:44]} e6 {[%emt 0:00:40]} 8. h5 {[%emt 0:00:05]} exd5 {[%emt 0:00:05]} 9. exd5 {[%emt 0:00:03]} Re8 {[%emt 0:00:15]} 10. h6 {[%emt 0:00:45]} Bh8 {[%emt 0:00:07]} 11. Bg5 {[%emt 0:00:02]} Qb6 {[%emt 0:00:39]} 12. b3 {[%emt 0:00:08]} Ng4 {[%emt 0:02:08]} 13. Rc1 {[%emt 0:00:36]} Bd4 {[%emt 0:00:31]} 14. Nh3 {[%emt 0:00:50]} Qa5 {[%emt 0:02:02]} 15. Qd2 {[%emt 0:00:53]} a6 {[%emt 0:00:25]} 16. O-O {[%emt 0:01:42]} Bf5 {[%emt 0:00:47]} 17. Bd3 {[%emt 0:05:34]} Bxd3 {[%emt 0:01:22]} 18. Qxd3 {[%emt 0:00:03]} Nd7 {[%emt 0:00:09]} 19. Ne2 {[%emt 0:01:52]} Bh8 {[%emt 0:01:16]} 20. a4 {[%emt 0:00:35]} b5 {[%emt 0:01:03]} 21. Bd2 {[%emt 0:00:29]} Qb6 {[%emt 0:00:13]} 22. a5 {[%emt 0:00:39]} Qb7 {[%emt 0:00:23]} 23. Ng3 {[%emt 0:00:20]} Nde5 {[%emt 0:00:43]} 24. Qc2 {[%emt 0:00:09]} Rab8 {[%emt 0:02:12]} 25. Ne4 {[%emt 0:00:06]} Qc7 {[%emt 0:00:13]} 26. cxb5 {[%emt 0:01:38]} Rxb5 {[%emt 0:00:20]} 27. Rfe1 {[%emt 0:00:16]} Reb8 {[%emt 0:00:06]} 28. Bc3 {[%emt 0:00:32]} Nxh6 {[%emt 0:00:42]} 29. f4 {[%emt 0:00:10]} Neg4 {[%emt 0:00:18]} 30. Qe2 {[%emt 0:01:06]} Bxc3 {[%emt 0:00:29]} 31. Rxc3 {[%emt 0:00:07]} Rxb3 {[%emt 0:00:10]} 32. Rxb3 {[%emt 0:00:10]} Rxb3 {[%emt 0:00:02]} 33. Qxa6 {[%emt 0:00:03]} Nf5 {[%emt 0:00:24]} 34. Nhf2 {[%emt 0:00:20]} Nxf2 {[%emt 0:01:14]} 35. Nf6+ {[%emt 0:00:05]} Kh8 {[%emt 0:00:01]} 36. Kxf2 {[%emt 0:00:21]} c4 {[%emt 0:00:10]} 37. Re8+ {[%emt 0:00:05]} Kg7 {[%emt 0:00:01]} 38. Rc8 {[%emt 0:00:15]} Qe7 {[%emt 0:00:09]} 39. Ne8+ {[%emt 0:00:11]} Kh6 {[%emt 0:00:04]} 40. Qa7 {[%emt 0:00:10]} 0-1

[Event "European Women Rapid-ch 2023"]
[Site "Monaco"]
[Date "2024.01.14"]
[Round "9.18"]
[White "Unuk, Laura"]
[Black "Krasteva, Beloslava"]
[Result "1/2-1/2"]
[ECO "E46"]
[WhiteElo "2346"]
[BlackElo "2251"]
[Annotator "RC"]
[PlyCount "61"]
[EventDate "2023.12.19"]
[EventType "swiss"]
[EventCountry "MNC"]
[SourceTitle "playchess.com"]
[Source "ChessBase"]
[SourceQuality "1"]
[TimeControl "900+10"]

1. d4 {[%emt 0:00:02]} Nf6 {[%emt 0:00:02]} 2. c4 {[%emt 0:00:08]} e6 {[%emt 0:00:02]} 3. Nc3 {[%emt 0:00:05]} Bb4 {[%emt 0:00:02]} 4. e3 {[%emt 0:00:02]} O-O {[%emt 0:00:03]} 5. Bd2 {[%emt 0:00:09]} d5 {[%emt 0:00:23]} 6. Qc2 {[%emt 0:00:47]} b6 {[%emt 0:01:14]} 7. cxd5 {[%emt 0:00:22]} exd5 {[%emt 0:00:03]} 8. Nf3 {[%emt 0:00:03]} Bb7 {[%emt 0:00:12]} 9. Ne5 {[%emt 0:00:42]} Re8 {[%emt 0:01:48]} 10. f4 {[%emt 0:00:25]} a6 {[%emt 0:01:10]} 11. Be2 {[%emt 0:02:32]} Nbd7 {[%emt 0:02:06]} 12. Bf3 {[%emt 0:00:49]} Bxc3 {[%emt 0:01:18]} 13. Bxc3 {[%emt 0:00:09]} Ne4 {[%emt 0:00:10]} 14. Bxe4 {[%emt 0:02:38]} dxe4 {[%emt 0:00:02]} 15. O-O {[%emt 0:00:03]} Nf6 {[%emt 0:00:47]} 16. Be1 {[%emt 0:00:33]} Nd5 {[%emt 0:00:41]} 17. Bf2 {[%emt 0:02:08]} f6 {[%emt 0:00:38]} 18. Nc4 {[%emt 0:00:02]} a5 {[%emt 0:00:13]} 19. Rfd1 {[%emt 0:00:33]} Ba6 {[%emt 0:00:10]} 20. a3 {[%emt 0:00:24]} Qd7 {[%emt 0:01:04]} 21. Rac1 {[%emt 0:00:03]} Re6 {[%emt 0:00:41]} 22. Qb3 {[%emt 0:00:49]} Kh8 {[%emt 0:01:23]} 23. h3 {[%emt 0:00:10]} Bxc4 {[%emt 0:00:21]} 24. Qxc4 {[%emt 0:00:15]} f5 {[%emt 0:00:08]} 25. Qe2 {[%emt 0:00:53]} Rg6 {[%emt 0:00:13]} 26. Rc4 {[%emt 0:00:22]} Rf8 {[%emt 0:00:15]} 27. Rdc1 {[%emt 0:00:21]} h6 {[%emt 0:00:04]} 28. Kh2 {[%emt 0:00:02]} Rff6 {[%emt 0:00:24]} 29. Bh4 {[%emt 0:00:11]} Rc6 {[%emt 0:00:22]} 30. b3 {[%emt 0:00:09]} Rcd6 {[%emt 0:00:23]} 31. Bf2 {[%emt 0:00:37]} 1/2-1/2